Cogmind - Beta 17 @@@ ROGUE MODE // 2026.07.05 @ 17:04:32 Player: 3.14 Result: Destroyed by B-75 Beast with Heavy Plasma Cannon Performance ------------- Evolutions (5) 2500 Regions Visited (9) 1800 Robots Destroyed (98) 490 Value Destroyed (3364) 3364 Prototype IDs (7) 140 Alien Tech Used (0) 0 Bonus (971) 971 TOTAL SCORE: 9265 Bonus ------- Follower Combat Kills 171 Registered with UFD 300 Met Optimus in HQ 500 Cogmind --------- Core Integrity 0/1000 Matter 300/300 Energy 100/100 System Corruption 17% Temperature Cool (12) Movement Core (100) Ox1 Location -5/Upper Caves Parts ------- > --- POWER (2) -------- (None) > --- PROPULSION (4) --- Cooled Cesium-ion Thruster > --- UTILITY (9) ------ Improved Signal Interpreter Transport Network Coupler Core Analyzer Hacking Suite > --- WEAPON (2) ------- Companion Sword > --- INVENTORY (5) ---- Light Angular Momentum Engine Terrain Scanner Improved Component Analysis Suite Scythe DRS Beacon (Ready) Peak State ------------ > --- POWER ------------ Light Angular Momentum Engine Reinforced Fission Core > --- PROPULSION ------- Carbon-fiber Leg Carbon-fiber Leg Improved Carbon-fiber Leg Flexi-carbon Leg > --- UTILITY ---------- Improved Heat Sink Medium Storage Unit Advanced Sensor Array Improved Medium Armor Plating Advanced Hacking Suite > --- WEAPON ----------- Companion Sword > --- INVENTORY -------- Light Angular Momentum Engine Carbon-fiber Leg Carbon-fiber Leg Carbon-fiber Leg Terrain Scanner Improved Component Analysis Suite Scythe DRS Beacon [Rating: 54] Favorites ----------- Power Ion Engine Engine Ion Engine Power Core Reinforced Fission Core Reactor Light Antimatter Reactor Propulsion Light Treads Treads Light Treads Leg Carbon-fiber Leg Wheel Armored Wheel Hover Unit Antigrav System Flight Unit Cooled Cesium-ion Thruster Utility Huge Storage Unit Device Advanced Sensor Array Storage Huge Storage Unit Processor Targeting Computer Hackware Advanced Hacking Suite Protection Hardened Light Armor Plating Weapon Assault Rifle Energy Gun Subdweller Laser Energy Cannon Subdweller Beam Cannon Ballistic Gun Assault Rifle Launcher Subdweller Shrapnel Launcher Special Weapon CPS Tube Slashing Weapon Companion Sword Build | -11 -10 -10 -9 -9 -6 -6 -6 -5 -5 ------- Run | Yrd Mat Sub Rec Scr Fac Low Low Fac Upp Slots Evolved 10 | . . . . . 8 . . 2 . Power 1 | . . . . . 1 . . . . Propulsion 2 | . . . . . . . . 2 . Utility 7 | . . . . . 7 . . . . Weapon . | . . . . . . . . . . Parts Attached 95 | 7 4 14 3 5 18 11 1 32 . Power 17 | 1 1 1 . . 6 1 . 7 . Engine 13 | 1 1 1 . . 4 1 . 5 . Core 3 | . . . . . 1 . . 2 . Reactor 1 | . . . . . 1 . . . . Propulsion 27 | 2 . 2 2 2 4 4 1 10 . Treads 6 | 2 . 2 2 . . . . . . Leg 14 | . . . . . 2 4 1 7 . Wheel 4 | . . . . 2 2 . . . . Hover 1 | . . . . . . . . 1 . Flight 2 | . . . . . . . . 2 . Utility 35 | 2 3 . . 2 7 6 . 15 . Device 13 | 1 . . . 1 3 4 . 4 . Storage 6 | 1 2 . . . . . . 3 . Processor 9 | . 1 . . . 2 1 . 5 . Hackware 2 | . . . . . . . . 2 . Protection 5 | . . . . 1 2 1 . 1 . Artifact . | . . . . . . . . . . Weapon 16 | 2 . 11 1 1 1 . . . . Energy Gun 1 | . . 1 . . . . . . . Energy Cannon 3 | . . 3 . . . . . . . Ballistic Gun 8 | 2 . 5 1 . . . . . . Ballistic Cannon . | . . . . . . . . . . Launcher 1 | . . 1 . . . . . . . Special Weapon 1 | . . . . . 1 . . . . Impact Weapon . | . . . . . . . . . . Slashing Weapon 2 | . . 1 . 1 . . . . . Piercing Weapon . | . . . . . . . . . . Special Melee Weapon . | . . . . . . . . . . Unidentified Prototypes 3 | . . . . 1 . . . 2 . Corrupted Parts 1 | . . . . . . . . 1 . System Corruption 10 | . . . . . . . . 10 . Parts Lost 46 | . . 2 . . 8 7 6 20 3 Power 12 | . . 1 . . 4 1 1 4 1 Propulsion 14 | . . 1 . . . 2 1 9 1 Utility 19 | . . . . . 3 4 4 7 1 Weapon 1 | . . . . . 1 . . . . Highest Loss Streak 10 | . . 1 . . 5 4 6 10 3 To Critical Strikes . | . . . . . . . . . . Average Backups 16 | 2 8 19 24 21 11 3 3 4 4 Power . | . 1 . 1 1 . . . . 1 Propulsion 3 | . 2 2 2 5 3 2 2 1 . Utility 2 | . 1 3 2 3 4 1 1 2 2 Weapon 9 | . 3 13 19 10 . . . . 1 Tool/Special . | . . . . . . . . . . Unused Backups 37 | . 1 1 3 13 16 . . . 3 Power . | . . . . . . . . . . Propulsion 7 | . . . 1 1 5 . . . . Utility 8 | . . . . . 6 . . . 2 Weapon 18 | . 1 1 2 12 1 . . . 1 Tool/Special 4 | . . . . . 4 . . . . Average Slot Usage (%) 86 | . 100 98 100 95 64 59 59 48 43 Engine 11 | . 14 13 14 14 8 5 3 2 . Treads 15 | . 28 27 28 7 . . . . . Leg 3 | . . . . . 5 12 13 14 . Wheel 5 | . . . . 20 7 . . . . Device 4 | . 7 . . 1 15 18 23 8 2 Storage 10 | . 14 14 14 14 3 . . 2 . Processor 10 | . 6 14 14 12 5 6 4 2 17 Protection 1 | . . . . . 7 4 6 1 . Energy Cannon 3 | . . 16 . . . . . . . Ballistic Gun 13 | . 28 3 28 19 . . . . . Slashing Weapon 3 | . . 3 . 4 6 6 6 5 5 Peak Build Rating 54 | 7 8 13 13 22 50 41 41 54 40 Average Rating 19 | 5 7 11 12 15 41 36 35 35 31 On Entrance 20 | . 7 8 13 12 20 37 41 23 40 Avg Prop Armor Cover (%) 8 | . . . . . . . . 8 . Naked Turns . | . . . . . . . . . . Heaviest Build 122 | 15 89 101 93 102 122 27 27 53 10 Greatest Support 68 | 40 40 40 40 40 35 35 30 68 11 Greatest Overweight (x) 7 | . 2 4 2 4 7 . . 4 . Average Overweight (x) 1 | . . 2 2 2 2 . . . . Largest Inventory Capacity 25 | 8 25 25 25 25 25 5 5 10 5 Average Capacity 19 | 6 16 25 25 25 16 5 5 7 5 Most Carried 25 | 5 12 25 25 25 25 5 5 9 5 Average Carried 17 | 2 8 19 24 23 14 4 4 5 5 Final Capacity 25 | 8 25 25 25 25 5 5 5 5 5 Final Carried 25 | 5 12 25 25 24 5 5 4 5 5 Scrap Suit Usage (%) 1 | . . . . . 16 . . . . Class Distribution -------------------- 50% | Mutant 28% | Commander-Mutant 19% | Scavenger-Mutant Dominant Class ---------------- Mutant | -10/Materials Mutant | -10/Subcaves Mutant | -9/Recycling Commander-Mutant | -9/Scraptown Scavenger-Mutant | -6/Factory Scavenger-Mutant | -6/Lower Caves Scavenger-Mutant | -6/Lower Caves Scavenger-Mutant | -5/Factory Scavenger-Mutant | -5/Upper Caves Resources | -11 -10 -10 -9 -9 -6 -6 -6 -5 -5 ----------- Run | Yrd Mat Sub Rec Scr Fac Low Low Fac Upp Matter Collected 2142 | 271 260 285 221 20 585 127 20 353 . Remotely . | . . . . . . . . . . Salvage Created 4439 | 41 444 446 815 . 932 323 25 1413 . Parts 230 | 7 24 28 36 . 54 11 3 67 . Haulers Intercepted 2 | . 1 . . . . . . 1 . Recyclers Shooed 3 | . 1 . 1 . . . . 1 . Parts Field Recycled . | . . . . . . . . . . Retrieved Matter . | . . . . . . . . . . Parts Self-Destructed 13 | . . 10 . . . . 3 . . Prevented 2 | . . . . . . 2 . . . Parts Restored . | . . . . . . . . . . Kills | -11 -10 -10 -9 -9 -6 -6 -6 -5 -5 ------- Run | Yrd Mat Sub Rec Scr Fac Low Low Fac Upp Combat Hostiles Destroyed 65 | . 10 12 7 . 16 5 1 14 . Melee 33 | . . . . . 13 5 1 14 . Guns 19 | . 10 2 7 . . . . . . Cannons 10 | . . 10 . . . . . . . AOE 3 | . . . . . 3 . . . . Classes Destroyed 19 | 1 6 2 3 . 4 2 . 1 . Worker 6 | . . . . . 2 . . 4 . Builder 4 | . 1 . 1 . 1 . . 1 . Tunneler 5 | 2 . . . . 1 . . 2 . Hauler 2 | . 1 . . . . . . 1 . Recycler 9 | . . . 7 . . . . 2 . Operator 2 | . 1 . . . . . . 1 . Turret 2 | . . 2 . . . . . . . Watcher 1 | . 1 . . . . . . . . Swarmer 8 | . 3 3 . . 1 . 1 . . Grunt 20 | . 7 . 1 . 7 . . 5 . Brawler 1 | . . . . . . . . 1 . Duelist 2 | . . . . . 2 . . . . Protector 2 | . . . . . 2 . . . . Sentry 7 | . . . 5 . 2 . . . . Hunter 4 | . . . . . . . . 4 . Programmer 7 | . . . 1 . 2 . . 4 . Subdweller 9 | . . 9 . . . . . . . Scrapoid 2 | . . . . . 2 . . . . Thug 3 | . . . . . . 3 . . . Savage 1 | . . . . . . 1 . . . Mutant 1 | . . . . . . 1 . . . Best Kill Streak 9 | 1 3 3 4 . 9 3 1 3 . Combat Bots Only 5 | . 2 2 2 . 5 3 1 3 . Max Kills in Single Turn 3 | 1 2 1 2 . 3 1 1 2 . Gunslinging . | . . . . . . . . . . Exploded 2 | . . . . . 2 . . . . Melee 2 | . . . . . 1 1 1 2 . Uniques/NPCs Destroyed . | . . . . . . . . . . Combat | -11 -10 -10 -9 -9 -6 -6 -6 -5 -5 -------- Run | Yrd Mat Sub Rec Scr Fac Low Low Fac Upp Hostile Shots Fired 567 | . 48 71 18 . 173 43 22 169 23 Missed 153 | . 13 28 7 . 48 6 9 36 6 Hits 414 | . 35 43 11 . 125 37 13 133 17 Melee 13 | . . . . . 6 6 . 1 . Projectile 401 | . 35 43 11 . 119 31 13 132 17 Critical Strikes 16 | . . 1 2 . 4 6 . 3 . Part Disruptions 3 | . . . . . . 2 . 1 . Damage Taken 7777 | . 446 568 162 . 2324 801 574 2563 339 Core 1854 | . 48 63 75 . 385 129 145 768 241 Absorbed by Shields . | . . . . . . . . . . Regen/Repaired (Parts) 376 | . 87 . . 289 . . . . . Core Remaining (%) 49 | 100 . . . 25 . . 22 . . Volleys Fired 111 | 9 38 30 28 . 6 . . . . Largest 2 | 2 2 2 2 . 1 . . . . Hottest 160 | 40 40 160 60 . 40 . . . . Shots Fired 209 | 18 76 56 53 . 6 . . . . Gun 165 | 18 76 18 53 . . . . . . Cannon 35 | . . 35 . . . . . . . Launcher 7 | . . 3 . . 4 . . . . Special 2 | . . . . . 2 . . . . Kinetic 167 | 18 76 16 53 . 4 . . . . Thermal 40 | . . 40 . . . . . . . Explosive . | . . . . . . . . . . Electromagnetic . | . . . . . . . . . . Robot Hit Streak 10 | 5 9 9 10 . 7 . . . . Robot Miss Streak 5 | 2 3 3 5 . 2 . . . . Penetration Max . | . . . . . . . . . . Secondary Targets . | . . . . . . . . . . Shots Hit Robots 285 | 9 51 38 29 . 49 20 2 87 . Core Hits 133 | 2 21 15 18 . 38 7 1 31 . Critical Kills 1 | . 1 . . . . . . . . Critical Parts Destroyed 2 | . 2 . . . . . . . . Critical Strikes 5 | . 3 . . . . . . 2 . Destroy 3 | . 3 . . . . . . . . Melee Attacks 231 | . . 12 . . 55 32 12 120 . Impact . | . . . . . . . . . . Slashing 231 | . . 12 . . 55 32 12 120 . Piercing . | . . . . . . . . . . Sneak Attacks 21 | . . . . . 5 1 . 15 . Combat Hostiles 1 | . . . . . . . . 1 . Follow-up Attacks 1 | . . . . . . . . 1 . Damage Inflicted 10524 | 123 703 954 570 . 3261 814 58 4041 . Guns 1522 | 119 675 180 548 . . . . . . Cannons 531 | . . 531 . . . . . . . Explosions 1477 | . . 243 . . 1234 . . . . Melee 6940 | . . . . . 2027 814 58 4041 . Ramming 54 | 4 28 . 22 . . . . . . Kinetic 2665 | 119 675 363 548 . 960 . . . . Thermal 865 | . . 591 . . 274 . . . . Explosive . | . . . . . . . . . . Electromagnetic . | . . . . . . . . . . Impact . | . . . . . . . . . . Slashing 6940 | . . . . . 2027 814 58 4041 . Piercing . | . . . . . . . . . . Highest Corruption 30 | . . . . . 6 24 30 17 17 Average Corruption 13 | . . . . . 5 19 25 10 17 Corruption Purged . | . . . . . . . . . . Corruption Blocked . | . . . . . . . . . . Effects 71 | . . . . . 14 34 2 20 1 Message Errors 20 | . . . . . 6 9 1 4 . Matter Fused 14 | . . . . . . 8 1 5 . Heat Flow Errors 9 | . . . . . 2 3 . 4 . Energy Discharges 5 | . . . . . . 2 . 3 . Parts Rejected 2 | . . . . . 1 . . 1 . Data Loss (minor) 11 | . . . . . 2 7 . 1 1 Data Loss (major) 7 | . . . . . 3 3 . 1 . Alerts 1 | . . . . . . 1 . . . Misdirections 2 | . . . . . . 1 . 1 . Overload Shots . | . . . . . . . . . . Overflow Damage 417 | . . 41 . . 81 10 . 285 . Projectiles . | . . . . . . . . . . Explosions 89 | . . 41 . . 48 . . . . Melee 328 | . . . . . 33 10 . 285 . Knockbacks . | . . . . . . . . . . Impact . | . . . . . . . . . . Kinetic . | . . . . . . . . . . Secondary . | . . . . . . . . . . Self-Inflicted Damage 194 | . . . . . 194 . . . . Shots 3 | . . . . . 3 . . . . Rammed 11 | 2 5 . 4 . . . . . . Targets Rammed 13 | 2 6 . 5 . . . . . . Kicked . | . . . . . . . . . . Crushed 2 | . 1 . 1 . . . . . . Highest Temperature 251 | . 2 144 36 . 251 196 . 230 . Average Temperature 56 | . 2 47 12 . 81 88 . 104 . Received Heat Transfer 1479 | . 195 162 81 . 502 323 . 180 36 Effects 3 | . . . . . 3 . . . . Interference 3 | . . . . . 3 . . . . Siege Activations . | . . . . . . . . . . Martial Activations . | . . . . . . . . . . Shielding Activations . | . . . . . . . . . . Robots Disrupted 4 | . . . . . . 1 . 3 . Combat Hostiles 3 | . . . . . . 1 . 2 . Robots Corrupted . | . . . . . . . . . . Combat Hostiles . | . . . . . . . . . . Parts Fried . | . . . . . . . . . . Impact Corruptions . | . . . . . . . . . . Robots Melted . | . . . . . . . . . . Combat Hostiles . | . . . . . . . . . . Parts Melted 6 | . . 6 . . . . . . . Heat Transferred 978 | . . 778 . . 200 . . . . Parts Sabotaged . | . . . . . . . . . . Parts Stolen . | . . . . . . . . . . Parts Stripped . | . . . . . . . . . . Power Chain Reactions . | . . . . . . . . . . Alert | -11 -10 -10 -9 -9 -6 -6 -6 -5 -5 ------- Run | Yrd Mat Sub Rec Scr Fac Low Low Fac Upp Maximum Alert Level 1 | . . . . . 1 . . . . Low Security (%) 97 | 100 100 . 100 . 83 . . 100 . Level 1 2 | . . . . . 16 . . . . Level 2 . | . . . . . . . . . . Level 3 . | . . . . . . . . . . Level 4 . | . . . . . . . . . . Level 5 . | . . . . . . . . . . High Security . | . . . . . . . . . . Max Security . | . . . . . . . . . . Peak Influence 239 | 5 61 . 107 . 239 . . 115 . Initial 79 | . . . 79 . . . . 30 . Average 42 | . 21 . 38 . 83 . . 44 . Influence Increases 2482 | 10 336 175 430 . 783 . 98 635 15 Destroy 0b10 Robot/C 1140 | . 200 100 140 . 340 . 80 280 . Destroy 0b10 Robot/NC 155 | 10 20 . 40 . 30 . . 55 . Destroy Leader 196 | . 44 . . . 70 . 10 72 . Allied During Kill 46 | . . . . . 38 . 8 . . Successful Hack 59 | . 27 . 8 . 12 . . 12 . Select Force Hacks 240 | . . . 240 . . . . . . Disable Machine 120 | . . . . . 75 . . 45 . Anti-Garrison Action 150 | . . . . . 150 . . . . Destroy Structure 46 | . . . 2 . 38 . . 6 . Partial Spotted 15 | . . . . . . . . 15 . Lose Combat Pursuer 315 | . 45 75 . . 30 . . 150 15 Influence Decreases 2453 | 10 336 10 560 35 765 18 50 612 57 Entered New Map 174 | . . . 86 35 . 8 . 18 27 Time Decay 1504 | 10 336 10 405 . 301 10 20 412 . Lost Part 288 | . . . . . 76 . 30 152 30 Lost Ally 160 | . . . . . 160 . . . . Purge Threat 327 | . . . 69 . 228 . . 30 . Squads Dispatched 15 | . 1 . . . 6 . . 8 . Investigation 6 | . 1 . . . 1 . . 4 . Extermination 5 | . . . . . 2 . . 3 . Reinforcement 2 | . . . . . 1 . . 1 . Assault 2 | . . . . . 2 . . . . Garrison . | . . . . . . . . . . Intercept . | . . . . . . . . . . Searches Triggered . | . . . . . . . . . . Construction Impeded 1 | . . . . . 1 . . . . Haulers Reinforced 1 | . . . . . . . . 1 . Active Scanning Responses . | . . . . . . . . . . Cargo Convoy Interrupts . | . . . . . . . . . . Stealth | -11 -10 -10 -9 -9 -6 -6 -6 -5 -5 --------- Run | Yrd Mat Sub Rec Scr Fac Low Low Fac Upp Distress Signals 4 | . 2 . 1 . . . . 1 . Communications Jammed . | . . . . . . . . . . Distress Signals . | . . . . . . . . . . Times Spotted 122 | . 20 15 6 . 26 5 4 41 5 Peak Tracking Total 10 | . 4 3 3 . 10 4 4 7 6 Tactical Retreats 13 | . 2 2 . . 1 . . 7 1 Traps | -11 -10 -10 -9 -9 -6 -6 -6 -5 -5 ------- Run | Yrd Mat Sub Rec Scr Fac Low Low Fac Upp Traps Triggered 2 | . 1 . . . . . . 1 . Indirectly . | . . . . . . . . . . Trap Hack Attempts . | . . . . . . . . . . Triggered . | . . . . . . . . . . Disarmed . | . . . . . . . . . . Reprogrammed . | . . . . . . . . . . Reused . | . . . . . . . . . . Traps Extracted . | . . . . . . . . . . Installed . | . . . . . . . . . . Triggered . | . . . . . . . . . . Most Traps Carried 1 | . . 1 . . . . . . . Machines | -11 -10 -10 -9 -9 -6 -6 -6 -5 -5 ---------- Run | Yrd Mat Sub Rec Scr Fac Low Low Fac Upp Machines Disabled 13 | . . 4 . . 6 . . 3 . Max in Single Turn 3 | . . 3 . . 2 . . 1 . Garrison Access 1 | . . . . . 1 . . . . Machines Repaired . | . . . . . . . . . . Machines Dismantled . | . . . . . . . . . . Machines Sabotaged . | . . . . . . . . . . Overloaded Fab Kills . | . . . . . . . . . . Hacking | -11 -10 -10 -9 -9 -6 -6 -6 -5 -5 --------- Run | Yrd Mat Sub Rec Scr Fac Low Low Fac Upp Machines Accessed 40 | . 8 1 13 6 5 . . 7 . Terminals 18 | . 7 . 5 . 2 . . 4 . Fabricators 1 | . . . . . 1 . . . . Repair Stations 1 | . 1 . . . . . . . . Recycling Units 12 | . . . 8 . 1 . . 3 . Scanalyzers . | . . . . . . . . . . Garrison Access 1 | . . . . . 1 . . . . Total Hacks 91 | . 25 3 22 13 12 . . 16 . Successful 54 | . 14 3 13 13 6 . . 5 . Failed 37 | . 11 . 9 . 6 . . 11 . Catastrophic 5 | . . . 1 . 2 . . 2 . Database Lockouts . | . . . . . . . . . . Manual 64 | . 20 . 23 . 7 . . 14 . Terminals 49 | . 23 . 11 . 7 . . 8 . Fabricators 3 | . . . . . 3 . . . . Repair Stations 2 | . 2 . . . . . . . . Recycling Units 20 | . . . 11 . 1 . . 8 . Scanalyzers . | . . . . . . . . . . Garrison Access 1 | . . . . . 1 . . . . Terminal Hacks 26 | . 5 3 1 13 3 . . 1 . Record 9 | . . 3 . 6 . . . . . Part Schematic 1 | . 1 . . . . . . . . Robot Analysis 8 | . 2 . . 6 . . . . . Prototype ID Bank 1 | . 1 . . . . . . . . Open Door 1 | . . . . 1 . . . . . Branch Access Points 1 | . . . . . 1 . . . . Unreport Threat 4 | . . . 1 . 2 . . 1 . Locate Traps 1 | . 1 . . . . . . . . Fabricator Hacks 1 | . . . . . 1 . . . . Load Schematic 1 | . . . . . 1 . . . . Repair Station Hacks 2 | . 2 . . . . . . . . Scan Component 1 | . 1 . . . . . . . . Repair 1 | . 1 . . . . . . . . Recycling Unit Hacks . | . . . . . . . . . . Scanalyzer . | . . . . . . . . . . Garrison Access Hacks . | . . . . . . . . . . Unauthorized Hacks 25 | . 7 . 12 . 2 . . 4 . Terminals 12 | . 7 . 4 . . . . 1 . Botnet 2 | . 1 . . . . . . 1 . Skim 10 | . 6 . 4 . . . . . . Fabricators 1 | . . . . . 1 . . . . Liberate 1 | . . . . . 1 . . . . Repair Stations . | . . . . . . . . . . Recycling Units 12 | . . . 8 . 1 . . 3 . Tunnel 8 | . . . 8 . . . . . . Fedlink 3 | . . . . . . . . 3 . Scrapoids 1 | . . . . . 1 . . . . Scanalyzers . | . . . . . . . . . . Garrison Access . | . . . . . . . . . . Data Cores Recovered 2 | . 1 . . . . . . 1 . Used 1 | . 1 . . . . . . . . Hacking Detections 19 | . 7 . 3 . 4 . . 5 . Full Trace Events 1 | . 1 . . . . . . . . Feedback Events . | . . . . . . . . . . Feedback Blocked . | . . . . . . . . . . Robot Schematics Acquired . | . . . . . . . . . . Robots Built . | . . . . . . . . . . Authchips . | . . . . . . . . . . Time . | . . . . . . . . . . Total Robot Build Rating . | . . . . . . . . . . Part Schematics Acquired 1 | . 1 . . . . . . . . Parts Built . | . . . . . . . . . . Authchips . | . . . . . . . . . . Time . | . . . . . . . . . . Total Part Build Rating . | . . . . . . . . . . Part Studies Acquired . | . . . . . . . . . . Parts Repaired 1 | . 1 . . . . . . . . Time 26 | . 26 . . . . . . . . Parts Recycled . | . . . . . . . . . . Recycled Matter . | . . . . . . . . . . Retrieved Matter . | . . . . . . . . . . Retrieved Components . | . . . . . . . . . . Parts Scanalyzed . | . . . . . . . . . . Part Schematics Acquired . | . . . . . . . . . . Parts Damaged . | . . . . . . . . . . Bothacking | -11 -10 -10 -9 -9 -6 -6 -6 -5 -5 ------------ Run | Yrd Mat Sub Rec Scr Fac Low Low Fac Upp Used RIF Installer . | . . . . . . . . . . Robots Hacked . | . . . . . . . . . . Non-combat . | . . . . . . . . . . Combat . | . . . . . . . . . . Robot Hacks Applied . | . . . . . . . . . . Relay Couplers Released 1 | . . . . . 1 . . . . Machine Destruction 1 | . . . . . 1 . . . . Fabnet Peak Effective % . | . . . . . . . . . . Robots Rewired 5 | . . . 5 . . . . . . Allies Hacked . | . . . . . . . . . . Hacks Repelled . | . . . . . . . . . . Allies | -11 -10 -10 -9 -9 -6 -6 -6 -5 -5 -------- Run | Yrd Mat Sub Rec Scr Fac Low Low Fac Upp Total Allies 14 | . . . 5 . 8 . 1 . . Largest Group 7 | . . . 5 5 7 . 1 . . Highest-Rated Group 153 | . . . 53 53 153 . 138 . . Highest-Rated Ally 138 | . . . 15 15 29 . 138 . . Initial UFD Resources 37 | . . . . . 22 19 19 21 37 Total Orders 2 | . . . . . . 2 . . . EXPLORE 2 | . . . . . . 2 . . . Ally Attacks 57 | . . . . . 56 . 1 . . Total Damage 1123 | . . . . . 785 . 338 . . Kills 6 | . . . . . 3 . 3 . . Allies Corrupted 1 | . . . . . . 1 . . . Allies Melted . | . . . . . . . . . . Intel | -11 -10 -10 -9 -9 -6 -6 -6 -5 -5 ------- Run | Yrd Mat Sub Rec Scr Fac Low Low Fac Upp Active Infowar (turns) 3796 | 51 576 . . 211 828 815 43 1262 10 Sensors 2754 | . . . . . 673 815 43 1223 . Seismic 1434 | 51 576 . . 211 596 . . . . T.N.C. 179 | . . . . . . . . 169 10 Robot Analysis Total 8 | . 2 . . 6 . . . . . Derelict Logs Recovered 8 | . . 2 . 5 . 1 . . . Drone Launches 2 | . . . . . . 2 . . . Drone Recoveries . | . . . . . . . . . . Exploration | -11 -10 -10 -9 -9 -6 -6 -6 -5 -5 ------------- Run | Yrd Mat Sub Rec Scr Fac Low Low Fac Upp Turns Passed 11341 | 135 1118 2129 2012 2907 828 815 43 1344 10 Spaces Moved 5172 | 60 480 607 565 1793 392 319 11 944 1 Core 17 | 5 . . . . . . . 12 . Treads 1948 | 55 480 607 565 241 . . . . . Legs 1073 | . . . . . 189 319 11 554 . Wheels 1755 | . . . . 1552 203 . . . . Hover 379 | . . . . . . . . 378 1 Flight . | . . . . . . . . . . Fastest Speed 50 | 50 160 320 320 135 120 120 120 60 60 Average Speed 181 | 150 169 322 320 159 131 120 120 96 60 Slowest Speed 480 | 160 320 480 320 320 150 120 120 250 60 Overloaded Moves . | . . . . . . . . . . Propulsion Burnouts . | . . . . . . . . . . Robots Hopped . | . . . . . . . . . . Potential Cave-ins . | . . . . . . . . . . Cave-ins Triggered 1 | . . . . . . . 1 . . Exploration Rate (%) 43 | 4 81 39 90 89 11 97 3 19 3 Regions Visited 9 Branch Regions 6 Pre-discovered Areas 14 | . 1 1 8 3 . . . 1 . Known Exits Taken 3 | . 1 . . . 1 . . 1 . Unknown Exits Taken 6 | 1 . 1 1 1 . 1 1 . . Scrap Searched 16 | . . 11 . 4 . 1 . . . Spaces Dug 6 | . . . . . 1 . 2 3 . Terrain Destroyed 95 | . . 38 2 . 50 . 2 3 . Melee 6 | . . . . . 1 . 2 3 . Projectile 6 | . . 4 2 . . . . . . AOE 83 | . . 34 . . 49 . . . . Terrain Rammed . | . . . . . . . . . . Walls Destroyed . | . . . . . . . . . . Machines Disabled . | . . . . . . . . . . Actions | -11 -10 -10 -9 -9 -6 -6 -6 -5 -5 --------- Run | Yrd Mat Sub Rec Scr Fac Low Low Fac Upp Total 6601 | 82 706 696 709 1844 633 702 24 1195 10 Wait 704 | . 168 1 5 . 103 336 1 81 9 Move 5163 | 59 479 606 564 1792 391 318 10 943 1 Hop . | . . . . . . . . . . Pick Up 81 | 5 7 21 5 19 17 2 . 5 . Fast Attach 55 | 7 1 . . 1 10 8 . 28 . Attach 28 | . . 3 . 2 13 2 1 7 . Detach 9 | . 1 . . 2 5 . . 1 . Swap 33 | . 3 17 4 3 3 1 . 2 . Drop 83 | . 3 6 7 25 30 3 . 9 . Fire 111 | 9 38 30 28 . 6 . . . . Melee 230 | . . 12 . . 55 32 12 119 . Ram . | . . . . . . . . . . Kick . | . . . . . . . . . . Crush 13 | 2 6 . 5 . . . . . . Escape Stasis . | . . . . . . . . . . Rewire 91 | . . . 91 . . . . . . Trap . | . . . . . . . . . . Miscellaneous . | . . . . . . . . . . Route ------- -11/Scrapyard -10/Materials (discovered 6 exits: [*Mat x3] / *Min x2 / *Sub) -10/Subcaves (discovered 3 exits: [*Mat x2] / *Rec) -9/Recycling (discovered 2 exits: [*Fac] / *Scr) -9/Scraptown (discovered 2 exits: *Fac x2) -6/Factory (discovered 2 exits: *Low x2) -6/Lower Caves -6/Lower Caves -5/Factory -5/Upper Caves History --------- Turn | Location | Event 2 | -11/Scrapyard | Met Revision 17 3 | -11/Scrapyard | Discovered new exit (range 16) 136 | -11/Scrapyard | Entered Materials 300 | -10/Materials | Build established: Mutant 384 | -10/Materials | Discovered new exit (range 15) 464 | -10/Materials | Repaired Lgt. Treads 551 | -10/Materials | Discovered new exit (range 12) 671 | -10/Materials | Discovered new exit (range 10) 1046 | -10/Materials | Identified exit to Subcaves 1070 | -10/Materials | Learned Storage interactive machine intel 1084 | -10/Materials | Learned location of Mines (-10) 1108 | -10/Materials | Discovered new exit (range 16) 1109 | -10/Materials | Identified exit to Mines 1142 | -10/Materials | Learned 2 Materials zone layouts 1254 | -10/Materials | Entered Subcaves 1255 | -10/Subcaves | Approached by a straggling Scientist 1344 | -10/Subcaves | Discovered new exit (range 6) 1445 | -10/Subcaves | Disturbed a concealed Subdweller 1678 | -10/Subcaves | Discovered new exit (range 8) 2164 | -10/Subcaves | Visited Clippyterm 2174 | -10/Subcaves | Learned Factory emergency access door positions 2210 | -10/Subcaves | Shifting Twisted Machinery released Sub. Beam Cannon 2558 | -10/Subcaves | Shifting Twisted Machinery released Piercing Trap 2651 | -10/Subcaves | Learned Materials stockpile data 3248 | -10/Subcaves | Learned location of Zion (-7) 3248 | -10/Subcaves | Met a Zionite searching for "candidates" 3285 | -10/Subcaves | Learned 2 Materials zone layouts 3334 | -10/Subcaves | Discovered new exit (range 10) 3375 | -10/Subcaves | A swath of the cavern ceiling suddenly collapsed 3383 | -10/Subcaves | Entered Recycling 3639 | -9/Recycling | Core integrity fell below 50% 4849 | -9/Recycling | Discovered new exit (range 16) 5314 | -9/Recycling | Scanned before Scraplab entrance 5359 | -9/Recycling | Entered Scraplab 5385 | -9/Recycling | Discovered new exit (range 3) 5395 | -9/Recycling | Entered Scraptown 5395 | -9/Scraptown | Accompanied by 5 allies 5407 | -9/Scraptown | Build established: Commander-Mutant 5933 | -9/Scraptown | Scanned Subdweller tech in exchange for log data 5939 | -9/Scraptown | Learned Research stockpile data 5949 | -9/Scraptown | Learned location of Armory (-4) 5952 | -9/Scraptown | Learned location of 2 exits from Proximity Caves 5990 | -9/Scraptown | Discovered new exit (range 11) 6595 | -9/Scraptown | Visited Cave Peace 6643 | -9/Scraptown | Visited TADAMA 6655 | -9/Scraptown | Visited Awakened 6674 | -9/Scraptown | Visited Symbiants 6721 | -9/Scraptown | Visited Cyclists 6744 | -9/Scraptown | Visited Comm Corps 6788 | -9/Scraptown | Visited CR-KLE's Repair Center 7098 | -9/Scraptown | Visited UFD Registry 7098 | -9/Scraptown | Registered with UFD as "Biocycle" 7130 | -9/Scraptown | Visited Derelict Rescue Squad 7139 | -9/Scraptown | Found DRS Beacon 7164 | -9/Scraptown | Visited Scrap Suit Storage 7210 | -9/Scraptown | Visited Curators Association 7375 | -9/Scraptown | Visited A0-MCA Data Center 7392 | -9/Scraptown | Visited Scrapoid Pod Storage 7410 | -9/Scraptown | Visited Sword Containment 7429 | -9/Scraptown | Found Prototype Slashing Weapon 7429 | -9/Scraptown | Identified Companion Sword 7483 | -9/Scraptown | Visited Observation Area 7520 | -9/Scraptown | Visited Analyses Database 7565 | -9/Scraptown | Visited Research Penetration Think Tank 7675 | -9/Scraptown | Found Scrap Suit 7677 | -9/Scraptown | Found Scrap Suit 7681 | -9/Scraptown | Found Scrap Suit 8085 | -9/Scraptown | CR-KLE repaired 6 parts 8228 | -9/Scraptown | Met Optimus 8228 | -9/Scraptown | Accepted into 0bPrime 8300 | -9/Scraptown | Discovered new exit (range 3) 8302 | -9/Scraptown | Entered Factory 8302 | -6/Factory | Accompanied by 2 allies 8302 | -6/Factory | Evolved 8 slots: Power x1, Utility x7 8351 | -6/Factory | Scrapoid reinforcements arrived 8380 | -6/Factory | Found Scrap Suit 8405 | -6/Factory | Attached CPS modules to 06F04-D 8421 | -6/Factory | Attached CPS modules to 06F03-D 8454 | -6/Factory | Found Scrap Suit 8666 | -6/Factory | Lost 3 allies 8755 | -6/Factory | Lost 5 parts (2p2u1w) 8761 | -6/Factory | Lost 3 allies 8902 | -6/Factory | Discovered new exit (range 12) 8936 | -6/Factory | Identified exit to Lower Caves 9130 | -6/Factory | Entered Lower Caves 9250 | -6/Lower Caves | Attacked by a faux Warlord 9304 | -6/Lower Caves | System corruption reached 10% 9315 | -6/Lower Caves | Core integrity fell below 50% 9370 | -6/Lower Caves | Lost 4 parts (1p3u) 9380 | -6/Lower Caves | Build established: Scavenger-Mutant 9543 | -6/Lower Caves | Learned location of 1 exit from Proximity Caves 9785 | -6/Lower Caves | Discovered new exit (range 9) 9945 | -6/Lower Caves | Entered another Lower Caves area 9979 | -6/Lower Caves | Crushed by falling debris 9979 | -6/Lower Caves | System corruption reached 30% 9982 | -6/Lower Caves | 99-TNT showed up to help 9984 | -6/Lower Caves | 99-TNT revealed a hidden path 9988 | -6/Lower Caves | Entered Factory 9988 | -5/Factory | Evolved 2 slots: Propulsion x2 10013 | -5/Factory | Lost 6 parts (1p1n4u) 10132 | -5/Factory | Loaded intel: 8 recycling unit locations 10169 | -5/Factory | Learned location of Protoforge (-2) 10335 | -5/Factory | Lost 3 parts (2p1u) 10871 | -5/Factory | System corruption reached 10% 10917 | -5/Factory | Core integrity fell below 50% 10939 | -5/Factory | Lost 10 parts (1p7n2u) 11053 | -5/Factory | Lost 4 parts (1p1n2u) 11326 | -5/Factory | Discovered new exit (range 5) 11332 | -5/Factory | Identified exit to Upper Caves 11332 | -5/Factory | Entered Upper Caves 11332 | -5/Upper Caves | Spotted B-75 Beast 11337 | -5/Upper Caves | Core integrity fell below 20% 11342 | -5/Upper Caves | Destroyed by B-75 Beast with Heavy Plasma Cannon Last Messages --------------- to Factory Zone 1G. 11234_ Connecting with Terminal... 11235_ System corrupted: Component data lost. 11235_ Destroyed Imp. Hover Unit. 11239_ Terminal disabled. 11259_ Acquired Core Analyzer. 11262_ SQ1R/MFCUYZ